bitfinex-derivatives/quotes_ETHF0:USTF0_20251008
["timestamp","ask_amount","ask_price","bid_price","bid_amount"]
[1759947123096,0.39614,4542.4,4542.1,0.00221322]
[1759947123597,0.222,4542.5,4542.2,0.5851]
[1759947123788,0.372,4542.5,4542.4,0.961]
[1759947124301,0.522,4542.5,4542.4,0.961]
[1759947124798,0.69616,4542.2,4542.1,0.58731322]
[1759947125095,0.78986,4542.2,4542.1,0.00221322]
[1759947125485,0.69616,4542.2,4542.1,0.58731322]
[1759947126790,0.78986,4542.2,4542.1,0.00221322]
[1759947127390,0.69616,4542.2,4542.1,0.58731322]
[1759947129300,0.69836,4542.3,4542.2,0.5802]
[1759947129596,0.69836,4542.3,4542.1,0.00221322]
[1759947129796,0.3967,4542.2,4542.1,0.00221322]
[1759947132897,0.3022,4542.2,4542.1,0.58241322]
[1759947133199,0.3165,4542.5,4542.1,0.58241322]
[1759947133200,0.76924,4542.5,4542.4,1.3062]
[1759947133394,0.92034,4542.5,4542.4,0.9525]
[1759947133697,0.3022,4542.2,4542.1,0.58241322]
[1759947134793,0.3022,4542.2,4542.1,0.95471322]
[1759947135796,0.3022,4542.2,4542.1,1.30841322]
[1759947136000,0.39614,4542.4,4542.1,1.12437322]
[1759947136194,0.1511,4542.4,4542.3,0.726]
[1759947136390,0.1511,4542.9,4542.8,0.726]
[1759947136596,0.1511,4542.9,4542.8,1.3062]
[1759947137493,0.1511,4542.9,4542.5,0.2315]
[1759947137494,0.39612,4542.6,4542.5,0.2315]
[1759947137695,0.79283,4542.6,4542.3,0.39615]
[1759947137904,0.69833,4542.6,4542.5,0.2315]
[1759947138104,0.69833,4542.6,4542.5,1.184]
[1759947138998,0.3022,4542.2,4542.1,0.95471322]
[1759947139599,0.39612,4542.7,4542.2,0.39616]
[1759947139897,0.3022,4542.6,4542.5,1.184]
[1759947141496,3.61584778,4542.9,4542.8,0.726]
[1759947141699,3.21974778,4542.9,4542.8,0.9525]
[1759947141898,3.21974778,4542.9,4542.8,1.70231]
[1759947141899,0.3022,4542.9,4542.8,1.70231]
[1759947142196,0.1511,4542.9,4542.8,1.70231]
[1759947142706,0.39609,4543.0,4542.8,1.12211]
[1759947142900,0.39609,4543.0,4542.9,1.3062]
[1759947143206,3.20769775,4543.0,4542.9,1.3062]
[1759947143405,1.08373,4544.0,4543.2,0.39607]
[1759947143406,0.39603,4543.8,4543.2,0.39607]
[1759947143708,3.11380775,4543.6,4543.5,0.8117]
[1759947143909,3.11380775,4543.6,4543.5,1.184]
[1759947144204,0.3022,4543.6,4543.5,1.184]
[1759947144404,0.3022,4543.6,4543.5,1.5377]
[1759947144604,0.1511,4543.6,4543.5,1.5377]
[1759947144807,0.3022,4543.6,4543.5,1.5377]
[1759947145411,0.17929167,4544.5,4543.5,5.9575]
[1759947145700,1.17636303,4545.8,4545.5,0.2315]
[1759947145895,1.97633952,4547.0,4545.5,0.2315]
[1759947145896,0.39582,4546.1,4545.6,0.5802]
[1759947146095,0.61782,4546.1,4546.0,0.8117]
[1759947146302,0.39586,4545.7,4545.6,0.5802]
[1759947146499,0.00172622,4545.7,4545.6,0.58292713]
[1759947147195,0.00172622,4545.7,4545.6,0.00272713]
[1759947147403,2.84199582,4545.7,4544.6,0.5802]
[1759947147706,0.39589,4545.4,4545.1,0.5802]
[1759947147907,0.61789,4545.3,4545.1,0.5802]
[1759947148107,3.43772441,4545.3,4545.1,0.5802]
[1759947148299,3.43772441,4545.3,4545.0,0.2315]
[1759947148501,3.43772441,4545.3,4545.1,0.5802]
[1759947148806,3.04183441,4545.3,4545.1,0.5802]
[1759947149106,0.00172622,4545.7,4545.6,0.5802]
[1759947149302,0.3959,4545.2,4545.1,0.5802]
[1759947149899,0.57588,4545.4,4545.0,0.23354191]
[1759947150208,0.39589,4545.3,4545.0,0.23354191]
[1759947150406,0.39589,4545.3,4545.1,0.5802]
[1759947150602,0.18,4545.4,4545.0,0.23354191]
[1759947151095,0.18,4545.4,4545.1,0.5802]
[1759947151298,0.57589,4545.4,4545.1,0.3723]
[1759947151701,0.57589,4545.4,4545.2,0.5802]
[1759947151899,0.39589,4545.3,4545.0,0.23354191]
[1759947152095,0.39589,4545.3,4545.1,0.5802]
[1759947152299,0.39589,4545.3,4545.2,0.9525]
[1759947152499,0.18,4545.4,4545.3,0.9525]
[1759947152896,0.18,4545.4,4545.3,1.3062]
[1759947153302,0.00172622,4545.7,4545.6,1.3062]
[1759947155004,0.00172622,4545.7,4545.6,0.9525]
[1759947156614,0.39588,4545.4,4545.1,0.5802]
[1759947156810,0.39589,4545.3,4545.1,0.5802]
[1759947157006,0.39591,4545.1,4545.0,0.81374191]
[1759947157708,0.39591,4545.1,4544.0,0.2315]
[1759947157709,0.39599,4544.1,4544.0,0.2315]
[1759947158012,0.39599,4544.1,4544.0,0.8117]
[1759947158013,3.30806648,4544.1,4544.0,0.8117]
[1759947158312,0.39604,4543.6,4543.5,0.8117]
[1759947158710,0.39608,4543.1,4543.0,0.7988]
[1759947159013,0.39608,4543.1,4543.0,0.80145518]
[1759947159315,0.39604,4543.7,4543.1,0.5673]
[1759947159612,0.39604,4543.6,4543.5,0.2137]
[1759947159809,3.20665123,4543.6,4543.5,0.781]
[1759947160014,0.39604,4543.6,4543.5,0.781]
[1759947160911,0.222,4544.7,4543.6,0.5673]
[1759947161209,2.90043546,4544.2,4543.6,0.5673]
[1759947161514,2.90043546,4544.2,4543.5,0.2137]
[1759947161515,0.39602,4543.8,4543.5,0.2137]
[1759947162013,0.9899,4544.5,4543.6,0.5673]
[1759947162014,0.39601,4544.0,4543.6,0.5673]
[1759947162208,0.39601,4544.0,4543.5,0.2137]
[1759947162209,0.39601,4543.9,4543.5,0.2137]
[1759947162716,2.90043546,4544.5,4543.6,0.5453]
[1759947163010,0.39599,4544.2,4544.0,0.2245]
[1759947163212,0.39599,4544.2,4544.1,0.5453]
[1759947165614,2.8239942,4544.2,4543.6,0.5453]
[1759947165918,0.39603,4543.7,4543.6,0.5453]
[1759947166218,1.21188,4544.7,4543.6,0.39604]
[1759947166219,0.222,4544.0,4543.6,0.39604]
[1759947166515,0.618,4544.0,4543.7,0.5453]
[1759947166912,0.39602,4543.9,4543.7,0.5453]
[1759947167214,0.39603,4543.7,4543.6,0.5453]
[1759947169407,0.39603,4543.7,4543.5,0.2137]
[1759947169607,0.39603,4543.7,4543.6,0.5453]
[1759947171418,0.39603,4543.7,4543.6,0.9266]
[1759947172318,0.39603,4543.7,4543.6,0.5453]
[1759947173420,0.39606,4543.3,4543.2,0.5453]
[1759947173914,0.39606,4543.3,4543.2,0.9266]
[1759947174522,0.39606,4543.3,4543.2,0.5453]
[1759947178117,0.39606,4543.3,4543.0,0.00265518]
[1759947178118,0.39608,4543.1,4543.0,0.00265518]
[1759947178519,8.21983472,4543.1,4543.0,0.00265518]
[1759947181320,8.21983472,4543.1,4543.0,1.50895518]
[1759947181321,2.82375472,4543.1,4543.0,1.50895518]
[1759947181626,2.82375472,4543.1,4543.0,0.77245518]
[1759947182220,0.61808,4543.2,4543.0,0.60845518]
[1759947182420,0.61808,4543.2,4543.1,0.9266]
[1759947183228,0.222,4543.2,4543.1,0.9266]
[1759947183725,1.17636303,4544.3,4543.2,0.5453]
[1759947183926,0.396,4544.1,4544.0,1.1511]
[1759947184121,0.618,4544.1,4544.0,1.1511]
[1759947184322,3.03184047,4544.1,4544.0,1.5063]
[1759947184521,0.222,4544.1,4544.0,1.5063]
[1759947185122,1.57228303,4545.0,4544.0,0.7698]
[1759947185322,0.39588,4545.5,4545.0,1.5063]
[1759947185622,1.58107161,4546.1,4545.0,1.5063]
[1759947185623,1.17636303,4546.1,4545.6,0.5453]
[1759947185928,0.22372622,4545.7,4545.6,0.5453]
[1759947189325,0.00172622,4545.7,4545.6,0.5453]
[1759947191429,0.00172622,4545.7,4545.6,1.2903]
[1759947192327,0.00172622,4545.7,4545.2,0.5301]
[1759947192530,0.39589,4545.3,4545.1,0.5301]
[1759947192824,0.39593,4544.9,4544.5,0.2245]
[1759947193025,0.00172622,4545.7,4545.6,0.39586]
[1759947193231,0.00172622,4545.7,4545.6,4.025355]
[1759947193429,0.00172622,4545.7,4545.6,4.421215]
[1759947194528,0.39575,4546.9,4546.5,0.2247]
[1759947194730,0.39577,4546.7,4546.6,0.5301]
[1759947195126,0.39577,4546.7,4546.5,0.2247]
[1759947195127,0.3923,4546.7,4546.1,0.5301]
[1759947195325,0.78811,4546.3,4546.1,0.5301]
[1759947195528,0.3923,4546.2,4546.1,0.53232362]
[1759947195837,3.50801786,4546.2,4546.1,0.00222362]
[1759947198733,4.27831786,4546.2,4546.1,0.00222362]
[1759947199931,0.3923,4545.3,4545.0,0.7548]
[1759947200237,0.7703,4545.1,4545.0,1.1116]
[1759947201132,0.7703,4545.1,4545.0,1.11392805]
[1759947201437,0.7703,4545.1,4545.0,1.47762805]
[1759947202532,4.05926387,4545.1,4545.0,0.00232805]
[1759947204237,4.05926387,4545.1,4545.0,0.53242805]
[1759947204634,4.05926387,4545.1,4545.0,0.00232805]
[1759947204834,4.05926387,4545.1,4545.0,0.53242805]
[1759947205532,4.05926387,4545.1,4545.0,0.00232805]
[1759947208335,3.66696387,4545.1,4545.0,1.11392805]
[1759947209038,0.7703,4545.1,4545.0,1.11392805]
[1759947209243,1.1626,4545.1,4545.0,0.00232805]
[1759947209435,3.9673938,4545.1,4545.0,0.00232805]
[1759947209631,0.78361,4543.9,4543.8,0.5301]
[1759947209836,1.16631,4543.9,4543.8,0.5301]
[1759947210143,1.16631,4543.9,4543.8,0.8869]
[1759947210438,0.7703,4543.9,4543.8,0.8869]
[1759947210838,0.7703,4543.9,4543.8,0.88963353]
[1759947211033,0.7703,4543.9,4543.8,1.25333353]
[1759947211640,1.16631,4543.9,4543.8,1.25333353]
[1759947212340,1.16631,4543.9,4543.8,0.88963353]
[1759947212840,1.55861,4543.9,4543.8,0.53283353]
[1759947214041,0.3923,4544.5,4543.8,1.64935353]
[1759947214245,0.78359,4544.2,4544.1,1.2506]
[1759947214539,3.12657945,4544.4,4544.3,1.64658]
[1759947214842,0.222,4544.4,4544.3,1.64658]
[1759947216238,1.38827,4544.4,4544.3,0.5301]
[1759947216440,0.7703,4543.9,4543.8,1.25333353]
[1759947216638,0.7836,4544.1,4544.0,1.4753]
[1759947216837,0.39598,4544.3,4544.1,0.5301]
[1759947217141,0.39598,4544.3,4544.2,1.2506]
[1759947217737,1.17636303,4545.6,4545.5,0.3568]
[1759947217938,0.3827,4545.8,4545.7,0.5301]
[1759947218241,0.7703,4545.8,4545.7,0.5301]
[1759947219040,1.1148,4545.2,4545.1,0.5287]
[1759947219247,0.3638,4544.6,4544.5,1.52486]
[1759947219547,0.3638,4544.6,4544.5,1.489]
[1759947219844,0.39592,4545.0,4544.5,1.489]
[1759947220037,0.3638,4544.7,4544.6,0.9042]
[1759947220238,0.3638,4544.7,4544.6,1.2643]
[1759947220434,0.39592,4545.0,4544.7,0.5287]
[1759947220639,0.75972,4545.0,4544.9,0.9042]
[1759947220938,0.39592,4545.0,4544.9,1.2643]
[1759947221339,0.3638,4545.1,4545.0,1.4765]
[1759947221536,0.5858,4545.2,4545.1,0.5287]
[1759947221742,0.5858,4545.2,4545.1,0.9042]
[1759947222539,0.9638,4545.2,4545.1,0.9042]
[1759947223245,0.9638,4545.2,4545.1,0.5287]
[1759947223447,1.3593,4545.2,4545.1,0.5287]
[1759947223947,1.7552,4545.2,4545.0,0.7556]
[1759947224140,1.7552,4545.2,4545.1,0.5434]
[1759947224541,1.7552,4545.2,4544.7,0.5434]
[1759947224844,0.3765,4544.8,4544.7,0.9219]
[1759947225144,0.3765,4544.8,4544.7,1.296]
[1759947225747,0.3765,4545.1,4545.0,0.6048]
[1759947226249,0.3765,4545.1,4545.0,0.9789]
[1759947226547,0.3765,4545.1,4545.0,1.5223]
[1759947228242,0.7545,4545.1,4545.0,1.5223]
[1759947228443,0.7545,4545.1,4545.0,1.1482]
[1759947229142,0.7545,4545.1,4545.0,0.5434]
[1759947229347,1.15,4545.1,4545.0,0.5434]
[1759947229544,0.3765,4544.6,4544.5,1.5207]
[1759947230742,0.7545,4544.6,4544.5,1.1466]
[1759947230942,1.15,4544.6,4544.5,1.1466]
[1759947231144,0.7545,4544.6,4544.5,1.1466]
[1759947231541,0.7545,4544.6,4544.5,1.5207]
[1759947232046,0.39594,4544.7,4544.6,0.39595]
[1759947232238,0.39594,4544.7,4544.6,1.69195]
[1759947232947,0.98972,4545.4,4544.6,1.69195]
[1759947232948,0.3955,4545.9,4545.0,0.2263]
[1759947233151,0.77235,4545.8,4545.7,1.76499258]
[1759947233353,3.44018753,4545.9,4545.7,2.16084258]
[1759947233654,0.222,4545.9,4545.8,1.296]
[1759947235751,1.372,4545.9,4545.8,0.5434]
[1759947236051,0.9765,4545.9,4545.8,0.5434]
[1759947236454,0.9765,4545.9,4545.8,0.9219]
[1759947237155,0.222,4545.9,4545.8,0.9219]
[1759947237452,0.222,4545.9,4545.8,1.296]
[1759947238648,0.5985,4545.9,4545.8,1.296]
[1759947239047,0.5985,4545.9,4545.8,1.69185]
[1759947239243,0.0028326,4546.3,4546.0,0.2263]
[1759947239449,0.3793326,4546.3,4546.2,1.296]
[1759947239649,0.6013326,4546.3,4546.2,1.296]
[1759947239951,3.89186767,4546.3,4546.2,1.296]
[1759947240153,2.91536767,4546.3,4546.2,1.69181]
[1759947240348,3.2078,4547.7,4546.2,1.69181]
[1759947240349,0.3765,4547.2,4547.1,1.296]
[1759947240752,3.2491989,4547.2,4547.1,1.296]
[1759947240950,0.3765,4547.2,4547.1,1.296]
[1759947241356,0.37881472,4547.2,4547.1,1.29760168]
[1759947241852,0.75681472,4547.2,4547.1,1.29760168]
[1759947242151,4.01309058,4547.2,4547.1,0.00160168]
[1759947243259,3.61759058,4547.2,4547.1,0.92350168]
[1759947244049,0.00231472,4547.2,4547.1,1.29760168]
[1759947245559,0.37881472,4547.2,4547.1,1.29760168]
[1759947245760,0.75681472,4547.2,4547.1,0.92350168]
[1759947246558,1.15231472,4547.2,4547.1,0.00160168]
[1759947247758,4.26446656,4547.2,4547.1,0.00160168]
[1759947247958,4.26446656,4547.2,4546.0,0.2263]
[1759947247959,1.15,4546.2,4546.1,0.5434]
[1759947248158,0.7545,4545.9,4545.8,0.5434]
[1759947248358,1.15035,4545.8,4545.7,2.32534549]
[1759947248559,1.15035,4545.8,4545.7,2.69144549]
[1759947248754,1.15035,4545.8,4545.2,0.5672]
[1759947248755,0.3784,4545.7,4545.2,0.5672]
[1759947248959,0.39596,4544.5,4544.1,0.72341783]
[1759947249156,0.5585,4544.4,4544.1,0.56934826]
[1759947249357,0.5585,4544.4,4544.1,0.39813826]
[1759947249757,0.39598,4544.3,4544.2,0.5672]
[1759947249970,0.5585,4544.2,4544.1,0.56934826]
[1759947250565,0.39598,4544.3,4544.1,0.00214826]
[1759947250868,0.39598,4544.3,4544.2,0.5672]
[1759947251167,0.95448,4544.3,4544.2,0.5672]
[1759947251566,0.5585,4544.8,4544.3,0.39597]
[1759947251769,0.5585,4544.9,4544.5,0.39595]
[1759947251960,0.5585,4544.9,4544.5,0.60185]
[1759947252265,0.39594,4544.8,4544.2,0.39598]
[1759947252462,0.5585,4544.7,4544.1,0.00214826]
[1759947252863,0.95448,4544.3,4544.2,0.5672]
[1759947253661,0.5585,4544.9,4544.2,0.5672]
[1759947253866,0.95447,4544.4,4544.2,0.5672]
[1759947254068,0.5585,4544.3,4544.2,0.5672]
[1759947256168,0.75017,4544.4,4544.3,0.3661]
[1759947256367,1.30867,4544.4,4544.3,0.9333]
[1759947257174,1.67397,4544.4,4544.3,0.9333]
[1759947259574,1.4292,4545.0,4544.1,0.00214826]
[1759947259575,1.67398,4544.2,4544.1,0.00214826]
[1759947264865,4.48916937,4544.2,4544.1,0.00214826]
[1759947268180,0.7195,4542.8,4542.7,1.67692]
[1759947268479,1.278,4542.8,4542.7,1.67692]
[1759947269069,1.28082861,4542.8,4542.7,1.6788529]
[1759947270578,1.28082861,4542.8,4542.7,1.3313529]
[1759947271475,1.28082861,4542.8,4542.7,1.2827329]
[1759947271678,1.28082861,4542.8,4542.7,0.3680329]
[1759947271882,1.28082861,4542.8,4542.7,0.0019329]
[1759947273584,4.32126898,4542.8,4542.7,0.0019329]
[1759947273780,4.32126898,4542.8,4542.7,0.3680329]
[1759947273972,4.32126898,4542.8,4542.7,0.9352329]
[1759947274580,4.32126898,4542.8,4542.7,0.0019329]
[1759947277483,1.50282861,4542.8,4542.7,1.2827329]
[1759947277786,0.35702861,4542.8,4542.7,1.2827329]
[1759947278380,0.00282861,4542.8,4542.7,1.2827329]
[1759947278580,0.00282861,4542.8,4542.7,6.2827329]
[1759947279389,0.36252861,4542.8,4542.7,6.2827329]
[1759947279691,1.25832861,4542.8,4542.7,0.0019329]
[1759947279889,1.25832861,4542.8,4542.7,1.2908329]
[1759947280284,1.25832861,4542.8,4542.7,0.0019329]
[1759947285489,1.25832861,4542.8,4542.7,0.3761329]
[1759947285684,1.25832861,4542.8,4542.7,0.0019329]
[1759947287893,1.65439861,4542.8,4542.7,0.0019329]
[1759947289496,4.53255092,4542.8,4542.7,0.0019329]
[1759947292688,1.65439861,4542.8,4542.7,1.2464329]
[1759947292892,1.87639861,4542.8,4542.7,1.2464329]
[1759947293090,1.87639861,4542.8,4542.7,0.3432329]
[1759947293296,1.87639861,4542.8,4542.7,0.0019329]
[1759947294193,4.7965425,4542.8,4542.7,0.0019329]
[1759947300599,5.96903131,4542.8,4542.7,0.0019329]
[1759947301000,4.7965425,4542.8,4542.7,0.0019329]
[1759947301902,4.7965425,4542.8,4541.1,1.18557322]
[1759947301903,0.3962,4541.3,4541.1,1.18557322]
[1759947302121,1.2729,4541.2,4541.1,1.2445]
[1759947302403,0.7197,4541.2,4541.1,1.2445]
[1759947302602,0.222,4541.3,4541.1,1.2445]
[1759947302807,0.3598,4541.2,4541.1,0.7078447]
[1759947303511,0.7197,4541.2,4541.1,1.2469447]
[1759947303809,0.3598,4541.2,4541.1,1.2469447]
[1759947304301,1.2729,4541.2,4541.1,1.2469447]
[1759947304698,0.7197,4541.2,4541.1,1.2469447]
[1759947304896,0.222,4541.6,4541.5,0.7054]
[1759947305098,0.222,4541.6,4541.5,2.4754363]
[1759947305296,0.5818,4541.6,4541.5,2.4754363]
[1759947305706,0.222,4541.6,4541.5,2.4754363]
[1759947306003,0.39612,4542.2,4542.1,0.5391]
[1759947306212,1.11579,4542.6,4542.5,1.4613]
[1759947306504,0.61929861,4542.8,4542.7,0.3413]
[1759947306805,0.67934428,4542.8,4542.7,1.2445]
[1759947307007,0.22322861,4542.8,4542.7,1.2445]
[1759947307402,0.58302861,4542.8,4542.7,1.2445]
[1759947307804,0.22322861,4542.8,4542.7,1.2445]
[1759947308711,0.56072861,4542.8,4542.7,1.2445]
[1759947309009,0.22322861,4542.8,4542.7,1.2445]
[1759947309808,0.5497,4543.7,4542.7,5.7054]
[1759947310010,0.5497,4544.1,4543.6,0.694]
[1759947310309,1.63967,4543.9,4543.8,0.5433]
[1759947310513,0.5497,4543.2,4542.9,0.5433]
[1759947310706,0.3565,4543.3,4542.5,0.2168]
[1759947310707,1.09005,4543.0,4542.6,1.18557322]
[1759947310913,1.09005,4543.0,4542.9,0.3623]
[1759947311108,1.09008,4542.8,4542.7,0.3623]
[1759947311412,1.63978,4542.8,4542.7,0.9056]
[1759947311817,1.2437,4542.8,4542.7,0.3623]
[1759947312010,1.2437,4542.8,4542.7,0.9056]
[1759947312211,1.4657,4542.8,4542.7,0.3623]
[1759947312424,1.2437,4542.2,4542.1,0.9056]
[1759947312710,1.2437,4542.2,4542.1,0.3623]
[1759947313015,1.2437,4541.6,4541.4,1.18557322]
[1759947313310,1.2437,4541.6,4541.5,0.9056]
[1759947313509,1.2437,4541.6,4541.5,1.2373]
[1759947314415,0.3375,4541.6,4541.5,1.4414]
[1759947315310,0.39617,4541.7,4541.5,1.4414]
[1759947315510,0.73367,4541.7,4541.6,2.2514363]
[1759947315811,1.63987,4541.7,4541.6,1.2373]
[1759947316111,1.09021,4541.3,4541.2,0.9056]
[1759947316414,0.3375,4541.3,4541.2,1.2373]
[1759947317122,1.2437,4541.3,4541.2,1.2373]
[1759947317621,1.63991,4541.2,4541.1,0.0024447]
[1759947317915,2.09483991,4541.2,4541.1,0.0024447]
[1759947318403,2.09483991,4541.2,4541.1,0.3647447]
[1759947318605,2.09483991,4541.2,4541.1,0.9080447]
[1759947320114,1.69862991,4541.2,4541.1,0.9080447]
[1759947320319,0.222,4541.3,4541.2,1.09021]
[1759947320514,0.222,4541.3,4541.2,1.2373]
[1759947320914,1.4657,4541.3,4541.2,1.2373]
[1759947322413,0.916,4541.3,4541.2,1.2373]
[1759947323409,1.4657,4541.3,4541.2,1.2373]
[1759947323817,1.4657,4541.3,4541.2,0.9056]
[1759947324019,1.4657,4541.3,4541.2,0.3623]
[1759947324221,1.4657,4541.3,4541.2,0.9056]
[1759947324419,1.4657,4541.3,4541.2,1.2373]
[1759947324817,1.4657,4541.3,4541.1,0.0024447]
[1759947325119,2.09350047,4541.2,4541.1,0.0024447]
[1759947325916,1.63991,4541.2,4541.1,0.0024447]
[1759947326725,4.48087888,4541.2,4541.1,0.0024447]
[1759947331422,4.48087888,4541.2,4539.5,1.58192322]
[1759947331621,5.1375681,4539.6,4539.5,0.5433]
[1759947331820,1.64007,4539.4,4539.3,0.9056]
[1759947332023,1.64009,4539.1,4539.0,0.9056]
[1759947332326,1.64012,4538.8,4538.7,0.9056]
[1759947332521,1.86505856,4538.8,4538.7,0.90722795]
[1759947332722,1.86505856,4538.8,4538.7,0.00162795]
[1759947333027,4.67629095,4538.8,4538.7,0.00162795]
[1759947333422,1.09049,4538.0,4537.9,0.02203687]
[1759947333620,1.86319,4538.0,4537.9,0.02203687]
[1759947333820,2.06809,4538.0,4537.9,0.02203687]
[1759947334433,2.06809,4538.0,4537.9,0.02425185]
[1759947335033,1.24563856,4538.8,4538.7,0.3623]
[1759947335234,1.09235856,4538.8,4538.7,1.2373]
[1759947335433,1.31535856,4538.8,4538.7,1.2373]
[1759947335635,1.86505856,4538.8,4538.7,1.2373]
[1759947336434,1.86505856,4538.8,4538.7,0.9056]
[1759947337028,1.46863856,4538.8,4538.3,0.5433]
[1759947337231,0.8872,4538.7,4538.6,0.3623]
[1759947337534,0.00193856,4538.8,4538.7,1.2373]
[1759947337734,1.24563856,4538.8,4538.7,1.2373]
[1759947338039,0.33943856,4538.8,4538.7,6.2373]
[1759947338332,0.33943856,4538.8,4538.7,0.3437]
[1759947338333,0.69593856,4538.8,4538.7,0.3437]
[1759947338530,0.33943856,4538.8,4538.7,1.1888]
[1759947338729,0.00193856,4538.8,4538.7,1.1888]
[1759947339234,0.33603856,4538.8,4538.7,1.1888]
[1759947340536,1.21373856,4538.8,4538.7,0.3437]
[1759947340741,1.43673856,4538.8,4538.7,0.3437]
[1759947341337,1.43673856,4538.8,4538.7,0.8499]
[1759947341538,1.2118,4538.4,4538.3,1.1888]
[1759947341735,1.60825,4538.4,4538.3,0.3437]
[1759947341938,1.08878,4538.1,4538.0,1.3929]
[1759947342442,0.3341,4538.1,4538.0,1.3929]
[1759947342837,1.64483,4538.7,4538.6,0.8667]
[1759947343036,1.64483,4538.7,4538.6,0.3278]
[1759947343237,1.64483,4538.7,4538.2,0.8667]
[1759947343238,1.64486,4538.3,4538.2,0.8667]
[1759947343440,1.64486,4538.3,4537.9,0.35205185]
[1759947343441,0.39649,4538.0,4537.9,0.35205185]
[1759947343637,1.64489,4538.0,4537.9,0.02425185]
[1759947344341,0.5709,4538.2,4538.1,0.6812]
[1759947344543,1.4714,4538.2,4538.1,1.2201]
[1759947344838,1.4714,4538.2,4537.9,0.02425185]
[1759947344839,0.209,4538.0,4537.9,0.02425185]
[1759947345040,1.4574,4538.0,4537.9,0.02425185]
[1759947347439,1.2484,4538.0,4537.9,0.35205185]
[1759947347645,1.4574,4538.0,4537.9,0.02425185]
[1759947348051,1.2484,4538.0,4537.9,0.35205185]
[1759947348751,1.2484,4538.0,4537.9,0.02425185]
[1759947349051,1.2484,4538.0,4537.9,1.24435185]
[1759947349347,1.4714,4538.0,4537.9,1.24435185]
[1759947350746,1.4714,4538.0,4537.9,0.02425185]
[1759947350747,1.6804,4538.0,4537.9,0.02425185]
[1759947352650,0.3966,4536.8,4536.6,0.5389]
[1759947352839,0.7445,4536.8,4536.7,1.2201]
[1759947353043,1.645,4536.8,4536.7,1.2201]
[1759947353246,0.223,4537.1,4536.8,0.39659]
[1759947353445,1.86797,4537.1,4537.0,1.2201]
[1759947353652,1.32907,4537.1,4537.0,1.41868747]
[1759947354253,0.96747,4537.1,4537.0,1.41868747]
[1759947354554,0.61957,4537.1,4537.0,1.41868747]
[1759947354754,0.61957,4537.1,4537.0,1.81526747]
[1759947355055,0.96747,4537.1,4537.0,1.41868747]
[1759947355548,1.32907,4537.1,4537.0,1.41868747]
[1759947355748,1.86797,4537.1,4537.0,1.22218747]
[1759947355949,1.86797,4537.1,4537.0,0.00208747]
[1759947356346,1.86797,4537.1,4537.0,0.86878747]
[1759947356947,1.86797,4537.1,4537.0,0.00208747]
[1759947358256,2.90215096,4537.1,4537.0,1.4166]
[1759947358556,0.39657,4537.2,4537.1,1.2201]
[1759947358754,0.61957,4537.2,4537.1,1.2201]
[1759947358955,0.96747,4537.2,4537.1,1.2201]
[1759947359157,0.3479,4537.5,4537.1,0.5389]
[1759947359449,1.64488,4538.1,4538.0,1.2201]
[1759947359649,2.32004354,4538.1,4538.0,1.2201]
[1759947360047,1.70056354,4538.1,4538.0,1.2201]
[1759947360246,1.70056354,4538.1,4538.0,1.4166]
[1759947360247,0.3479,4538.1,4538.0,1.4166]
[1759947361247,0.3479,4538.5,4538.4,1.2201]
[1759947361447,0.5389,4538.0,4537.5,0.59303]
[1759947361655,1.2484,4537.8,4537.7,0.8667]
[1759947361851,1.4714,4537.8,4537.7,0.8667]
[1759947362161,0.9325,4537.8,4537.7,1.2201]
[1759947362361,0.223,4537.8,4537.7,1.2201]
[1759947362559,0.9325,4537.8,4537.7,1.2201]
[1759947362858,0.5389,4537.7,4537.5,0.59303]
[1759947363054,0.5389,4537.7,4537.6,1.2201]
[1759947363055,0.3479,4537.7,4537.6,1.2201]
[1759947363463,1.2484,4537.7,4537.6,1.2201]
[1759947364657,1.4714,4537.7,4537.6,1.2201]
[1759947364956,0.3479,4537.4,4537.3,0.8667]
[1759947365162,1.2484,4537.4,4537.3,1.2201]
[1759947365558,1.64494,4537.4,4537.3,0.3278]
[1759947365757,1.64496,4537.2,4537.1,0.33007331]
[1759947366060,1.86796,4537.2,4537.1,0.33007331]
[1759947366661,1.86796,4537.2,4537.1,0.86897331]
[1759947367059,0.96746,4537.2,4537.1,1.22237331]
[1759947367563,1.86796,4537.2,4537.1,1.22237331]
[1759947367764,0.9325,4537.2,4537.1,1.22237331]
[1759947368766,0.39655,4537.3,4537.1,1.22237331]
[1759947368767,1.07329,4538.0,4537.9,1.1828]
[1759947369061,1.07329,4538.0,4537.5,0.2116]
[1759947369062,1.07332,4537.6,4537.5,0.3321]
[1759947369255,1.07332,4537.6,4537.1,0.00227331]
[1759947369256,1.56426,4537.2,4537.1,0.00227331]
[1759947369459,1.78726,4537.2,4537.1,0.00227331]
[1759947369658,2.24008813,4537.2,4537.1,0.00227331]
[1759947370758,2.24008813,4537.2,4537.1,0.33437331]
[1759947370965,1.78726,4537.2,4537.1,0.83237331]
[1759947371360,2.24002216,4537.2,4537.1,0.83237331]
[1759947371555,2.24002216,4537.2,4537.1,1.18507331]
[1759947371754,1.74912216,4537.2,4537.1,1.18507331]
[1759947372165,0.61956,4537.2,4537.1,1.18507331]
[1759947372363,1.78726,4537.2,4537.1,0.50027331]
[1759947372669,0.6768,4537.2,4537.1,1.18507331]
[1759947372867,1.67699766,4538.6,4537.8,0.3965]
[1759947373165,1.67699766,4538.6,4538.5,0.8301]
[1759947373166,1.56414,4538.6,4538.5,0.8301]
[1759947373357,1.56414,4538.6,4538.5,1.79084]
[1759947373358,0.45298132,4538.6,4538.5,1.79084]
[1759947373563,0.00193856,4538.8,4538.7,1.08123]
[1759947373774,0.00193856,4538.8,4538.7,1.57923]
[1759947374465,0.223,4539.8,4539.5,0.39635]
[1759947374770,0.223,4539.8,4539.7,1.1828]